Cogmind - Beta 9.2 @@@ ROGUE MODE // 2019.12.03 @ 02:39:36 Player: Aubrey Result: Self-destructed Performance ------------- Evolutions (2) 1000 Regions Visited (5) 1000 Robots Destroyed (5) 25 Value Destroyed (180) 180 Prototype IDs (1) 20 Alien Tech Used (0) 0 Bonus (300) 300 TOTAL SCORE: 2525 Bonus ------- Aligned with FarCom 300 Cogmind --------- Core Integrity 550/550 Matter 290/300 Energy 250/250 System Corruption 0% Temperature Cool (0) Movement Rolling (90) Ox1 Location -8/Materials Parts ------- > --- POWER (3) -------- Ion Engine > --- PROPULSION (2) --- Wheel > --- UTILITY (4) ------ (None) > --- WEAPON (2) ------- Latent Energy Streamer Assault Rifle > --- INVENTORY (4) ---- Light Assault Rifle Peak State ------------ > --- POWER ------------ Ion Engine > --- PROPULSION ------- Flight Unit Flight Unit > --- UTILITY ---------- (None) > --- WEAPON ----------- Latent Energy Streamer Assault Rifle > --- INVENTORY -------- Light Assault Rifle [Rating: 14] Favorites ----------- Power Ion Engine Engine Ion Engine Propulsion Flight Unit Treads Light Treads Wheel Wheel Flight Unit Flight Unit Utility Small Storage Unit Device Heat Sink Storage Small Storage Unit Weapon Assault Rifle Energy Gun EM Pulse Gun Energy Cannon Latent Energy Streamer Ballistic Gun Assault Rifle Build | -11 -10 -10 -10 -9 -8 ------- Run | Scr Mat Min Exi Min Mat Slots Evolved 4 | . . . . . 4 Power 2 | . . . . . 2 Propulsion . | . . . . . . Utility 2 | . . . . . 2 Weapon . | . . . . . . Parts Attached 14 | 6 2 3 1 2 . Power 2 | 1 1 . . . . Engine 2 | 1 1 . . . . Core . | . . . . . . Reactor . | . . . . . . Propulsion 5 | 2 . 2 . 1 . Treads 2 | 2 . . . . . Leg . | . . . . . . Wheel 1 | . . . . 1 . Hover . | . . . . . . Flight 2 | . . 2 . . . Utility 2 | 1 1 . . . . Device 1 | . 1 . . . . Storage 1 | 1 . . . . . Processor . | . . . . . . Hackware . | . . . . . . Protection . | . . . . . . Artifact . | . . . . . . Weapon 5 | 2 . 1 1 1 . Energy Gun 1 | 1 . . . . . Energy Cannon 1 | . . . 1 . . Ballistic Gun 3 | 1 . 1 . 1 . Ballistic Cannon . | . . . . . . Launcher . | . . . . . . Special Weapon . | . . . . . . Impact Weapon . | . . . . . . Slashing Weapon . | . . . . . . Piercing Weapon . | . . . . . . Special Melee Weapon . | . . . . . . Unidentified Prototypes 1 | . . . 1 . . Parts Lost . | . . . . . . Power . | . . . . . . Propulsion . | . . . . . . Utility . | . . . . . . Weapon . | . . . . . . Highest Loss Streak . | . . . . . . Average Slot Usage (%) 73 | . 89 79 67 54 . Engine 14 | . 14 14 14 14 . Treads 9 | . 28 12 . . . Wheel 1 | . . . . 9 . Flight 15 | . . 10 28 8 . Device 2 | . 4 7 . . . Storage 5 | . 14 7 . . . Energy Gun 5 | . 14 8 . . . Energy Cannon 4 | . . . 6 14 . Ballistic Gun 15 | . 14 17 17 7 . Naked Turns . | . . . . . . Heaviest Build 17 | 13 14 14 17 17 . Greatest Support 40 | 40 40 40 8 10 . Greatest Overweight (x) 4 | 2 . 2 2 4 . Average Overweight (x) . | . . . . 1 . Largest Inventory Capacity 6 | 6 6 6 4 4 . Average Capacity 4 | 5 6 5 4 4 . Most Carried 4 | 3 2 2 2 4 . Average Carried . | . . . . 1 . Final Capacity 6 | 6 6 4 4 4 4 Final Carried 2 | . . . 2 1 1 Class Distribution -------------------- 76% | Mutant 23% | Scavenger-Mutant Dominant Class ---------------- Mutant | -10/Materials Mutant | -10/Mines Scavenger-Mutant | -10/Exiles Mutant | -9/Mines Mutant | -8/Materials Resources | -11 -10 -10 -10 -9 -8 ----------- Run | Scr Mat Min Exi Min Mat Matter Collected 369 | 226 73 18 32 20 . Remotely . | . . . . . . Salvage Created 227 | . 200 . . 27 . Parts 11 | . 10 . . 1 . Haulers Intercepted . | . . . . . . Recyclers Shooed . | . . . . . . Parts Field Recycled . | . . . . . . Retrieved Matter . | . . . . . . Parts Self-Destructed . | . . . . . . Prevented . | . . . . . . Kills | -11 -10 -10 -10 -9 -8 ------- Run | Scr Mat Min Exi Min Mat Combat Hostiles Destroyed 4 | . 4 . . . . Guns 4 | . 4 . . . . Classes Destroyed 2 | . 1 . . 1 . Worker 1 | . . . . 1 . Grunt 4 | . 4 . . . . Best Kill Streak 4 | . 4 . . 1 . Combat Bots Only 4 | . 4 . . . . Max Kills in Single Turn 1 | . 1 . . 1 . Gunslinging . | . . . . . . Exploded . | . . . . . . Melee . | . . . . . . Uniques/NPCs Destroyed . | . . . . . . Combat | -11 -10 -10 -10 -9 -8 -------- Run | Scr Mat Min Exi Min Mat Damage Taken 281 | . 239 42 . . . Core 10 | . 10 . . . . Absorbed by Shields . | . . . . . . Core Remaining (%) 98 | 100 . . . 96 . Volleys Fired 15 | . 13 . 1 1 . Largest 2 | . 2 . 1 1 . Hottest 60 | . 60 . 60 60 . Shots Fired 28 | . 26 . 1 1 . Gun 26 | . 26 . . . . Cannon 2 | . . . 1 1 . Launcher . | . . . . . . Special . | . . . . . . Kinetic 13 | . 13 . . . . Thermal . | . . . . . . Explosive . | . . . . . . Electromagnetic 15 | . 13 . 1 1 . Robot Hit Streak 11 | . 11 . . . . Robot Miss Streak 2 | . 2 . . . . Penetration Max . | . . . . . . Secondary Targets 1 | . 1 . . . . Max Gunslinging Chain 1 | . 1 . . . . Shots Hit Robots 20 | . 20 . . . . Core Hits 9 | . 8 . . 1 . Critical Hits . | . . . . . . Critical Kills . | . . . . . . Critical Parts Destroyed . | . . . . . . Melee Attacks . | . . . . . . Impact . | . . . . . . Slashing . | . . . . . . Piercing . | . . . . . . Sneak Attacks . | . . . . . . Combat Hostiles . | . . . . . . Follow-up Attacks . | . . . . . . Damage Inflicted 412 | . 294 . . 118 . Guns 294 | . 294 . . . . Cannons . | . . . . . . Explosions 118 | . . . . 118 . Melee . | . . . . . . Ramming . | . . . . . . Kinetic 151 | . 151 . . . . Thermal . | . . . . . . Explosive . | . . . . . . Electromagnetic 261 | . 143 . . 118 . Impact . | . . . . . . Slashing . | . . . . . . Piercing . | . . . . . . Highest Corruption 5 | . . . 2 5 . Average Corruption 3 | . . . 2 4 . Corruption Purged . | . . . . . . Effects 4 | . . . . 4 . Message Errors 2 | . . . . 2 . Data Loss (minor) 1 | . . . . 1 . Data Loss (major) 1 | . . . . 1 . Overload Shots . | . . . . . . Overflow Damage . | . . . . . . Projectiles . | . . . . . . Explosions . | . . . . . . Melee . | . . . . . . Knockbacks . | . . . . . . Impact . | . . . . . . Kinetic . | . . . . . . Secondary . | . . . . . . Self-Inflicted Damage . | . . . . . . Shots . | . . . . . . Rammed . | . . . . . . Targets Rammed . | . . . . . . Kicked . | . . . . . . Crushed . | . . . . . . Highest Temperature 108 | . 108 . 24 24 . Average Temperature 57 | . 63 . 14 14 . Received Heat Transfer 135 | . 135 . . . . Siege Activations . | . . . . . . Robots Corrupted . | . . . . . . Combat Hostiles . | . . . . . . Parts Fried 1 | . 1 . . . . Impact Corruptions . | . . . . . . Robots Melted . | . . . . . . Combat Hostiles . | . . . . . . Parts Melted . | . . . . . . Heat Transferred . | . . . . . . Parts Sabotaged . | . . . . . . Parts Stolen . | . . . . . . Parts Stripped . | . . . . . . Power Chain Reactions . | . . . . . . Missiles Intercepted . | . . . . . . Latent Energy Used 311 | . . . 111 200 . LE Corruption 5 | . . . 2 3 . Alert | -11 -10 -10 -10 -9 -8 ------- Run | Scr Mat Min Exi Min Mat Peak Influence 130 | . 130 50 . 50 . Average Influence 55 | . 90 50 . 43 . Maximum Alert Level . | . . . . . . Low Security (%) 100 | 100 100 100 . 100 . Level 1 . | . . . . . . Level 2 . | . . . . . . Level 3 . | . . . . . . Level 4 . | . . . . . . Level 5 . | . . . . . . High Security . | . . . . . . Max Security . | . . . . . . Squads Dispatched 3 | . 3 . . . . Investigation . | . . . . . . Extermination . | . . . . . . Reinforcement 3 | . 3 . . . . Assault . | . . . . . . Garrison . | . . . . . . Intercept . | . . . . . . Construction Impeded . | . . . . . . Haulers Reinforced . | . . . . . . Stealth | -11 -10 -10 -10 -9 -8 --------- Run | Scr Mat Min Exi Min Mat Distress Signals 3 | . 3 . . . . Communications Jammed . | . . . . . . Distress Signals . | . . . . . . Times Spotted 11 | . 7 4 . . . Peak Tracking Total 5 | . 5 2 . . . Tactical Retreats . | . . . . . . Traps | -11 -10 -10 -10 -9 -8 ------- Run | Scr Mat Min Exi Min Mat Traps Triggered . | . . . . . . Indirectly . | . . . . . . Trap Hack Attempts . | . . . . . . Triggered . | . . . . . . Disarmed . | . . . . . . Reprogrammed . | . . . . . . Reused . | . . . . . . Traps Extracted . | . . . . . . Installed . | . . . . . . Triggered . | . . . . . . Machines | -11 -10 -10 -10 -9 -8 ---------- Run | Scr Mat Min Exi Min Mat Machines Disabled 3 | . . . . 3 . Max in Single Turn 3 | . . . . 3 . Machines Sabotaged . | . . . . . . Garrisons Compromised . | . . . . . . Overloaded Fab Kills . | . . . . . . Fab Network Shutdowns . | . . . . . . Hacking | -11 -10 -10 -10 -9 -8 --------- Run | Scr Mat Min Exi Min Mat Machines Accessed 4 | . . . 4 . . Terminals . | . . . . . . Fabricators . | . . . . . . Repair Stations . | . . . . . . Recycling Units . | . . . . . . Scanalyzers . | . . . . . . Garrison Access . | . . . . . . Total Hacks 31 | . . . 31 . . Successful 31 | . . . 31 . . Failed . | . . . . . . Catastrophic . | . . . . . . Database Lockouts . | . . . . . . Manual 11 | . . . 11 . . Terminals . | . . . . . . Fabricators . | . . . . . . Repair Stations . | . . . . . . Recycling Units . | . . . . . . Scanalyzers . | . . . . . . Garrison Access . | . . . . . . Terminal Hacks 31 | . . . 31 . . Record 31 | . . . 31 . . Fabricator Hacks . | . . . . . . Repair Station Hacks . | . . . . . . Recycling Unit Hacks . | . . . . . . Scanalyzer . | . . . . . . Garrison Access Hacks . | . . . . . . Unauthorized Hacks . | . . . . . . Terminals . | . . . . . . Fabricators . | . . . . . . Repair Stations . | . . . . . . Recycling Units . | . . . . . . Scanalyzers . | . . . . . . Garrison Access . | . . . . . . Data Cores Recovered . | . . . . . . Used . | . . . . . . Hacking Detections . | . . . . . . Full Trace Events . | . . . . . . Feedback Events . | . . . . . . Feedback Blocked . | . . . . . . Robot Schematics Acquired . | . . . . . . Robots Built . | . . . . . . Matter . | . . . . . . Time . | . . . . . . Total Robot Build Rating . | . . . . . . Part Schematics Acquired . | . . . . . . Parts Built . | . . . . . . Matter . | . . . . . . Time . | . . . . . . Total Part Build Rating . | . . . . . . Parts Repaired . | . . . . . . Time . | . . . . . . Parts Recycled . | . . . . . . Recycled Matter . | . . . . . . Retrieved Matter . | . . . . . . Retrieved Components . | . . . . . . Parts Scanalyzed . | . . . . . . Part Schematics Acquired . | . . . . . . Parts Damaged . | . . . . . . Bothacking | -11 -10 -10 -10 -9 -8 ------------ Run | Scr Mat Min Exi Min Mat Used RIF Installer . | . . . . . . Robots Hacked . | . . . . . . Non-combat . | . . . . . . Combat . | . . . . . . Robot Hacks Applied . | . . . . . . Relay Couplers Released . | . . . . . . Robots Rewired . | . . . . . . Allies Hacked . | . . . . . . Hacks Repelled . | . . . . . . Allies | -11 -10 -10 -10 -9 -8 -------- Run | Scr Mat Min Exi Min Mat Total Allies . | . . . . . . Largest Group . | . . . . . . Highest-Rated Group . | . . . . . . Highest-Rated Ally . | . . . . . . Total Orders . | . . . . . . Ally Attacks . | . . . . . . Total Damage . | . . . . . . Kills . | . . . . . . Allies Corrupted . | . . . . . . Allies Melted . | . . . . . . Intel | -11 -10 -10 -10 -9 -8 ------- Run | Scr Mat Min Exi Min Mat Robot Analysis Total . | . . . . . . Derelict Logs Recovered 2 | . . 1 . 1 . Drone Launches . | . . . . . . Drone Recoveries . | . . . . . . Exploration | -11 -10 -10 -10 -9 -8 ------------- Run | Scr Mat Min Exi Min Mat Turns Passed 1233 | 162 326 121 493 131 . Spaces Moved 1328 | 89 174 98 846 121 . Core 43 | 42 . . . 1 . Treads 255 | 47 174 34 . . . Legs . | . . . . . . Wheels 92 | . . . . 92 . Hover . | . . . . . . Flight 938 | . . 64 846 28 . Fastest Speed 37 | 50 160 37 37 90 . Average Speed 81 | 136 160 101 55 97 . Slowest Speed 250 | 160 160 200 197 250 . Overloaded Moves . | . . . . . . Propulsion Burnouts . | . . . . . . Robots Hopped . | . . . . . . Cave-ins Triggered . | . . . . . . Exploration Rate (%) 32 | 5 35 30 93 31 1 Regions Visited 5 Branch Regions 3 Pre-discovered Areas 2 | . . 1 1 . . Known Exits Taken . | . . . . . . Unknown Exits Taken 5 | 1 1 1 1 1 . Scrap Searched . | . . . . . . Spaces Dug . | . . . . . . Terrain Destroyed 9 | . . . 9 . . Melee . | . . . . . . Projectile . | . . . . . . AOE 9 | . . . 9 . . Actions | -11 -10 -10 -10 -9 -8 --------- Run | Scr Mat Min Exi Min Mat Total 1450 | 130 196 122 868 134 . Wait 69 | 30 5 10 17 7 . Move 1323 | 88 173 97 845 120 . Hop . | . . . . . . Pick Up 13 | 6 2 3 2 . . Fast Attach 1 | . . . . 1 . Attach 10 | 6 1 2 . 1 . Detach 7 | . . 4 1 2 . Swap 3 | . 1 1 1 . . Drop 9 | . 1 5 1 2 . Fire 15 | . 13 . 1 1 . Melee . | . . . . . . Ram . | . . . . . . Kick . | . . . . . . Crush . | . . . . . . Escape Stasis . | . . . . . . Rewire . | . . . . . . Trap . | . . . . . . Miscellaneous . | . . . . . . Route ------- -11/Scrapyard -10/Materials -10/Mines -10/Exiles (discovered 2 exits: [*Min x2]) -9/Mines -8/Materials History --------- Turn | Location | Event 11 | -11/Scrapyard | Discovered new exit (range 16) 163 | -11/Scrapyard | Entered Materials 259 | -10/Materials | Met 8R-AWN 281 | -10/Materials | Discovered new exit (range 10) 316 | -10/Materials | Build established: Mutant 489 | -10/Materials | Entered Mines 490 | -10/Mines | Followed 8R-AWN into the Mines 592 | -10/Mines | Learned location of Zion (-7) 599 | -10/Mines | Discovered new exit (range 5) 610 | -10/Mines | Entered Exiles 617 | -10/Exiles | Discovered new exit (range 15) 622 | -10/Exiles | Welcomed by 8R-AWN 632 | -10/Exiles | Met EX-HEX 666 | -10/Exiles | Met EX-DEC 683 | -10/Exiles | Visited The Gauntlet 760 | -10/Exiles | Discovered new exit (range 11) 784 | -10/Exiles | Met EX-BIN 825 | -10/Exiles | Aligned with FarCom system 826 | -10/Exiles | Given EX-Vault access code 838 | -10/Exiles | Opened EX-Vault 842 | -10/Exiles | Found Prototype Energy Cannon 868 | -10/Exiles | Warned to stay clear of 0b10 Research branches 873 | -10/Exiles | Identified Latent Energy Streamer 1025 | -10/Exiles | Learned about 8R-AWN's background 1103 | -10/Exiles | Left Exiles lab with Latent Energy Streamer 1103 | -10/Exiles | Entered Mines 1215 | -9/Mines | Learned location of 1 exit from Materials 1224 | -9/Mines | Discovered new exit (range 11) 1234 | -9/Mines | Entered Materials 1234 | -8/Materials | Evolved 4 slots: Power x2, Utility x2 1234 | -8/Materials | Self-destructed Last Messages --------------- 01154_ K-01 Serf collects debris. 01157_ Dropped Flight Unit. 01158_ K-01 Serf collects debris. 01158_ Dropped Flight Unit. 01159_ System corrupted: Component data lost. 01161_ K-01 Serf collects debris. 01182_ EP>GMTQMSQ&ZV O&LAR7 01224_ EXIT=FOUND 01227_ K-01 Serf collects debris. 01230_ T-07 Excavator is excavating. 01230_ K-01 Serf collects debris. 01234_ T-07 Excavator is excavating. PARAMETERS=POWER_2,UTILITY_2 LOCATION=UNKNOWN GOAL=ESCAPE 01234_ Receiving FarCom transmissions... Map ----- +----------------------------------------------------+ | | | | | | | | | | | | | | | | | | | | | | | | | | | | | | | ??????????????????????????????????????? | | ??????????????????????????????????????? | | ??????????????????????????????????????? | | ??????????????????????????????????????? | | ??????????????????????????????????????? | | ??????????????????????????????????????? | | ??????????????????????????????????????? | | ???????????????????????###????????????? | | ????????????####+### / #????????????? | | ????????????# #????????????? | | ????????????# @ = #????????????? | | ????????????# #????????????? | | ????????????####+### #????????????? | | ??????????????????????? ##????????????? | | ???????????????????????????o??????????? | | ??????????????????????????????????????? | | ??????????????????????????????????????? | | ??????????????????????????????????????? | | ??????????????????????????????????????? | | ??????????????????????????????????????? | | ??????????????????????????????????????? | | ??????????????????????????????????????? | | ??????????????????????????????????????? | | ??????????????????????????????????????? | | ??????????????????????????????????????? | | ??????????????????????????????????????? | | ??????????????????????????????????????? | | ??????????????????????????????????????? | | ??????????????????????????????????????? | | ??????????????????????????????????????? | | ??????????????????????????????????????? | | ??????????????????????????????????????? | | ??????????????????????????????????????? | | ??????????????????????????????????????? | | ??????????????????????????????????????? | +----------------------------------------------------+ Best States ------------- Heat Dissipation 35 Energy Generation 10 Energy Capacity 250 Matter Stores 300 Matter Capacity 300 Sight Range 16 Terrain Scan Density 10 Evasion (%) 62 Recoil Reduction 2 Item Schematics ----------------- None Robot Schematics ------------------ None Fabricated ------------ Nothing Alien Tech Used ----------------- None Achievements -------------- Crack Shot Librarian Risk Taker Tourist Challenges ------------ None Game ------ Seed FlyingFlyingNanoactuators Manual? 0 Play Time 00:25:26 Cumulative 8.2 hours Start 2019.12.03 @ 02:02:43 End 2019.12.03 @ 02:39:36 Sessions 1 Manual Loads 0 Difficulty Rogue Special Mode None Game No. 16 Rogue 15 Adventurer 0 Explorer 1 Win Type - Total 0 Types 0/0/0/0/0/0/0 Lore% 7 Gallery% 9 Achievement% 5 Wizard Run 0 Options --------- ASCII 0 Keyboard 1 Movement Numpad Keybinds 0 Fullscreen 2 Font 16/Dina Map View 80x52 Tactical HUD 1 Map Filters NONE Filters NONE Steam 1 RUN: 52e219da-7c7c-4035-907a-9694621534a2